fUSD/lending_fUSD_20240407
["ID","MTS","AMOUNT","RATE_DAILY","PERIOD"]
[321755588,1712495537966,-197.38903611,0.000219,2]
[321755589,1712495537982,-151.0,0.00024658,7]
[321755590,1712495537995,-150.66055423,0.00024658,7]
[321755591,1712495538009,-383.42557477,0.00024658,7]
[321755592,1712495538021,-500.0,0.00024931,2]
[321755593,1712495538035,-199.4790475,0.00024931,2]
[321755594,1712495538047,-500.0,0.00024931,2]
[321755595,1712495538060,-987.57034616,0.00024931,2]
[321755596,1712495538088,-253.09965384,0.00024931,2]
[321755597,1712495538101,-391.60420294,0.00024931,2]
[321755598,1712495538143,-197.38903611,0.000219,2]
[321755599,1712495538156,-108.39579706,0.00024931,2]
[321755600,1712495538168,-1159.51,0.00024931,2]
[321755601,1712495538182,-500.0,0.00024931,2]
[321755602,1712495538195,-754.51,0.00024931,2]
[321755603,1712495538208,-500.0,0.00024931,2]
[321755604,1712495538220,-48.26209063,0.00024931,2]
[321755605,1712495538235,-1111.24790937,0.00024931,2]
[321755606,1712495538248,-1240.67,0.00024931,2]
[321755607,1712495538261,-500.0,0.00024931,2]
[321755608,1712495538275,-754.51,0.00024931,2]
[321755609,1712495538287,-155.304473,0.00024931,7]
[321755610,1712495538299,-244.06894298,0.00024931,2]
[321755611,1712495538974,-525.94799464,0.00020437,2]
[321755612,1712495538983,-1541.48,0.00020593,2]
[321755613,1712495538993,-197.38903611,0.000219,2]
[321755614,1712495539003,-197.38903611,0.000219,2]
[321755615,1712495539012,-197.38903611,0.000219,2]
[321755616,1712495539022,-197.38903611,0.000219,2]
[321755617,1712495539031,-197.38903611,0.000219,2]
[321755618,1712495539040,-197.38903611,0.000219,2]
[321755619,1712495539050,-197.38903611,0.000219,2]
[321755620,1712495539059,-171.69906451,0.000219,2]
[321755621,1712495539435,-1338.42,0.00019743,2]
[321755622,1712495539446,-273.42835961,0.00019973,2]
[321755623,1712495539457,-25.6899716,0.000219,2]
[321755624,1712495539468,-197.38903611,0.000219,2]
[321755625,1712495539478,-197.38903611,0.000219,2]
[321755626,1712495539487,-197.38903611,0.000219,2]
[321755627,1712495539497,-197.38903611,0.000219,2]
[321755628,1712495539507,-97.88707487,0.000219,2]
[321755629,1712495539626,-311.91099114,0.00020696,2]
[321755630,1712495541514,683619.33235242,0.000197,2]
[321755631,1712495542009,410.913049,0.00018943,2]
[321755632,1712495542185,323.14134565,0.00018943,2]
[321755633,1712495542219,1182.83379808,0.00018943,2]
[321755634,1712495542395,12334.68914627,0.00018943,2]
[321755635,1712495542936,2256.3214625,0.00018698,2]
[321755636,1712495543014,172.09,0.00016712,2]
[321755637,1712495544253,245000.0,0.00019605,2]
[321755638,1712495544549,1848.42778418,0.00019699,2]
[321755639,1712495545186,285.46840956,0.00019698,2]
[321755640,1712495545487,355.50308125,0.00019698,2]
[321755641,1712495545554,155.0,0.00019698,2]
[321755642,1712495545858,155.0,0.00019698,2]
[321755643,1712495546177,4465.75619085,0.00018697,2]
[321755644,1712495547067,405.04059642,0.00018697,2]
[321755645,1712495547193,5532.00830868,0.00018697,2]
[321755646,1712495547547,4465.75619085,0.00018697,2]
[321755647,1712495547841,150.0,0.00018696,2]
[321755648,1712495547959,3158.03215725,0.00018696,2]
[321755649,1712495548036,673380.27260504,0.00019604,2]
[321755650,1712495548370,836.06,0.00019699,2]
[321755651,1712495548528,100000.0,0.00019602,2]
[321755652,1712495548708,1240.66085517,0.00018695,2]
[321755653,1712495549215,3158.03215725,0.00018695,2]
[321755654,1712495549269,4465.75619085,0.00018695,2]
[321755655,1712495549355,189735.81071997,0.00019603,2]
[321755656,1712495549384,237273.03115185,0.00019603,2]
[321755657,1712495549613,324.95202219,0.00019603,2]
[321755658,1712495550281,832.96,0.00019593,3]
[321755659,1712495551007,175.73,0.00016261,2]
[321755660,1712495551485,193.57206001,0.00019602,2]
[321755661,1712495552328,414.86169245,0.00019602,2]
[321755662,1712495553756,2968.81118591,0.00019584,2]
[321755663,1712495560538,3795.606605,0.0001964,2]
[321755664,1712495603185,323.14134565,0.00019584,2]
[321755665,1712495619194,239.77300228,0.00019584,2]
[321755666,1712495661028,5062.32165257,0.00019584,2]
[321755667,1712495823434,1000.0,0.00020899,5]
[321755668,1712495834311,522.13,0.00018389,2]
[321755669,1712495912954,161.33262702,0.00019638,2]
[321755670,1712496099555,3013.3751,0.00019638,2]
[321755671,1712496129609,748.22929307,0.00019616,2]
[321755672,1712496151214,42636.87488182,0.00039236,30]
[321755673,1712496155185,362.65,0.00019456,2]
[321755674,1712496205789,400.0,0.00019346,2]
[321755675,1712496218915,23900.0,0.0001929,2]
[321755678,1712496312028,-3283.35,0.00024329,15]
[321755679,1712496349426,496.02,0.00017423,2]
[321755680,1712496357516,394.59277329,0.000205,5]
[321755681,1712496371977,492.32015365,0.00020499,7]
[321755683,1712496455590,716.65,0.00024329,15]
[321755684,1712496558527,-500.0,0.000193,2]
[321755685,1712496558548,-1500.0,0.000193,2]
[321755686,1712496559086,-2000.0,0.00019301,2]
[321755687,1712496559558,-2000.0,0.00019301,2]
[321755688,1712496560012,-2000.0,0.00019301,2]
[321755689,1712496560491,-2000.0,0.00019301,2]
[321755690,1712496562104,-3957.09,0.00019301,2]
[321755691,1712496562124,-500.0,0.00019361,2]
[321755692,1712496562143,-4452.11338389,0.00019385,2]
[321755693,1712496562165,-207.09,0.00019386,2]
[321755694,1712496562184,-500.0,0.00019404,2]
[321755695,1712496562204,-496.02,0.00019686,2]
[321755696,1712496562223,-164.3276537,0.00019738,2]
[321755697,1712496562242,-275.56523461,0.00019738,2]
[321755698,1712496562260,-1907.13004437,0.00019738,2]
[321755699,1712496562281,-639.69747985,0.00019739,2]
[321755700,1712496562300,-240.08283614,0.00019741,2]
[321755701,1712496562319,-472.83649341,0.00019741,2]
[321755702,1712496562337,-1314.63909934,0.00019741,2]
[321755703,1712496573227,-524.0,0.00019201,2]
[321755704,1712496595661,-2000.0,0.00019201,2]
[321755705,1712496596092,-488.1502,0.00019201,2]
[321755709,1712496608028,1700.0,0.000282,120]
[321755710,1712496611533,-2000.0,0.00019741,2]
[321755711,1712496617942,-1511.8498,0.00019741,2]
[321755713,1712496632772,-310.0,0.00019201,2]
[321755714,1712496632985,-0.26576868,0.00019201,2]
[321755723,1712496638369,-309.73423132,0.00019201,2]
[321755724,1712496638379,-1792.59110066,0.00019741,2]
[321755725,1712496638388,-153.66,0.00019836,2]
[321755726,1712496638397,-250.0,0.00019932,2]
[321755727,1712496638406,-150.0,0.00019999,2]
[321755728,1712496638415,-300.0,0.00019999,2]
[321755729,1712496638424,-686.8681172,0.0002,2]
[321755730,1712496638434,-362.76974592,0.0002,2]
[321755731,1712496638443,-10077.30430905,0.0002,2]
[321755732,1712496638452,-256.02612092,0.0002,2]
[321755733,1712496638461,-326.50550398,0.0002,2]
[321755734,1712496638471,-1253.3592145,0.0002,2]
[321755735,1712496638479,-3056.72436352,0.00020023,2]
[321755736,1712496638488,-1762.27300257,0.00020023,2]
[321755737,1712496638501,-499.99,0.00020025,2]
[321755738,1712496638510,-150.99,0.00020029,2]
[321755739,1712496638519,-3275.29,0.00020029,2]
[321755740,1712496638528,-186.87,0.00020081,2]
[321755741,1712496638539,-310.44,0.00020181,2]
[321755742,1712496638548,-161.33262701,0.00020203,2]
[321755743,1712496638557,-7110.2058,0.00020259,2]
[321755744,1712496638566,-600.0,0.00020325,2]
[321755745,1712496638577,-395.77,0.00020349,2]
[321755746,1712496638586,-167.66,0.00020357,2]
[321755747,1712496638596,-805205.26453662,0.00020401,2]
[321755748,1712496638605,-1928.52698677,0.00020402,2]
[321755749,1712496638614,-300.5297113,0.00020402,2]
[321755750,1712496638623,-146341.58045096,0.00020402,2]
[321755751,1712496638633,-153.58,0.00020491,2]
[321755752,1712496638643,-153.58,0.00020491,2]
[321755753,1712496638653,-153.58,0.00020491,2]
[321755754,1712496638663,-500.0,0.00020499,2]
[321755755,1712496638673,-150.0,0.000205,2]
[321755756,1712496638682,-72838.089,0.00020502,2]
[321755757,1712496638692,-167.82,0.00020616,2]
[321755758,1712496638701,-161.33262701,0.00020768,2]
[321755759,1712496638709,-153.66,0.0002087,2]
[321755760,1712496638718,-3151.47542586,0.00020898,2]
[321755761,1712496638728,-1856.90490674,0.000209,2]
[321755762,1712496638737,-1000.0,0.000209,2]
[321755763,1712496638746,-1928.52698668,0.00020902,2]
[321755764,1712496638755,-300.52971126,0.00020902,2]
[321755765,1712496638765,-146341.58045096,0.00020902,2]
[321755766,1712496638774,-1750.0,0.00021,3]
[321755767,1712496638783,-47612.96540488,0.00021,2]
[321755768,1712496638792,-150.0,0.00021,2]
[321755769,1712496638801,-186.06,0.00021044,2]
[321755770,1712496638810,-384.22,0.00021161,2]
[321755771,1712496638819,-384.22,0.00021166,2]
[321755772,1712496638829,-384.22,0.00021172,2]
[321755773,1712496638838,-384.22,0.00021178,2]
[321755774,1712496638847,-384.22,0.00021183,2]
[321755775,1712496638857,-384.22,0.00021189,2]
[321755776,1712496638865,-384.22,0.00021194,2]
[321755777,1712496638874,-384.22,0.000212,2]
[321755778,1712496638883,-384.22,0.00021205,2]
[321755779,1712496638893,-3065.93,0.00021205,14]
[321755780,1712496638901,-384.22,0.00021211,2]
[321755781,1712496638910,-384.22,0.00021217,2]
[321755782,1712496638920,-384.22,0.00021222,2]
[321755783,1712496638929,-384.22,0.00021228,2]
[321755784,1712496638938,-384.22,0.00021233,2]
[321755785,1712496638947,-384.22,0.00021239,2]
[321755786,1712496638956,-384.22,0.00021244,2]
[321755787,1712496638966,-384.22,0.0002125,2]
[321755788,1712496638976,-384.22,0.00021255,2]
[321755789,1712496638985,-384.22,0.00021261,2]
[321755790,1712496638994,-384.22,0.00021267,2]
[321755791,1712496639003,-161.33262701,0.00021332,2]
[321755792,1712496639012,-1928.52698668,0.00021402,2]
[321755793,1712496639021,-300.52971126,0.00021402,2]
[321755794,1712496639030,-146341.58045096,0.00021402,2]
[321755795,1712496639039,-150.0,0.000215,2]
[321755796,1712496639049,-7500.0,0.00021698,2]
[321755797,1712496639058,-192.55,0.00021753,2]
[321755798,1712496639067,-400.0,0.00021764,2]
[321755799,1712496639077,-161.0,0.00021777,2]
[321755800,1712496639086,-704.49276447,0.00021796,2]
[321755801,1712496639096,-620.18279938,0.00021797,2]
[321755802,1712496639104,-2853.9186,0.00021799,2]
[321755803,1712496639114,-178.97666498,0.00021799,5]
[321755804,1712496639122,-179.71752547,0.00021799,2]
[321755805,1712496639132,-160.9846278,0.000218,2]
[321755806,1712496639142,-153.58,0.00021889,2]
[321755807,1712496639151,-161.33262701,0.00021897,2]
[321755808,1712496639160,-2144.24137074,0.00021899,2]
[321755809,1712496639169,-2144.24137073,0.00021899,2]
[321755810,1712496639179,-53244.869,0.00021899,2]
[321755811,1712496639189,-173.70619216,0.000219,2]
[321755812,1712496639200,-186.19673446,0.000219,2]
[321755813,1712496639210,-33457.74065376,0.000219,2]
[321755814,1712496639221,-188.53243001,0.000219,4]
[321755815,1712496639231,-2010.69013527,0.000219,2]
[321755816,1712496639243,-1928.52698668,0.00021901,2]
[321755817,1712496639253,-300.52971126,0.00021901,2]
[321755818,1712496639264,-146341.58045096,0.00021901,2]
[321755819,1712496639274,-186.87,0.0002191,2]
[321755820,1712496639283,-250.0,0.00021918,2]
[321755821,1712496639293,-496.02,0.0002195,2]
[321755822,1712496639302,-800.0,0.00021973,2]
[321755823,1712496639312,-4001.91936919,0.00021977,2]
[321755824,1712496639321,-153.58,0.0002199,2]
[321755825,1712496639331,-153.58,0.0002199,2]
[321755826,1712496639340,-153.58,0.0002199,2]
[321755827,1712496639349,-153.58,0.0002199,2]
[321755828,1712496639359,-485.70839377,0.00021997,2]
[321755829,1712496639369,-3565.91831499,0.00021997,2]
[321755830,1712496639378,-156.0026956,0.00021997,3]
[321755831,1712496639387,-155.0,0.00021998,2]
[321755832,1712496639397,-1241.19748567,0.00021998,2]
[321755833,1712496639407,-155.0,0.00021999,2]
[321755834,1712496639416,-9879.15036386,0.00021999,2]
[321755835,1712496639425,-652817.37097816,0.00022,2]
[321755836,1712496639435,-865.72005379,0.00022,2]
[321755837,1712496639444,-783.28322174,0.00022,2]
[321755838,1712496639453,-1672645.88138713,0.00022,2]
[321755839,1712496639463,-640.50173907,0.00022,2]
[321755840,1712496639474,-1653.08,0.00022,2]
[321755841,1712496639483,-1288.05,0.00022,2]
[321755842,1712496639492,-150.0,0.00022,2]
[321755843,1712496639505,-1928.52698668,0.00022401,2]
[321755844,1712496639514,-300.52971126,0.00022401,2]
[321755845,1712496639525,-186.06,0.00022414,2]
[321755846,1712496639534,-15677.965,0.00022429,2]
[321755847,1712496639545,-689.014,0.00022429,2]
[321755848,1712496639555,-4792.0,0.00022429,2]
[321755849,1712496639564,-150.0,0.00022429,2]
[321755850,1712496639575,-1269.054,0.00022429,2]
[321755851,1712496639794,-155.62226538,0.00022436,2]
[321755852,1712496639804,-150.0,0.000225,2]
[321755853,1712496639815,-160.98462779,0.00022546,2]
[321755854,1712496639824,-317.52450685,0.00022621,6]
[321755855,1712496639833,-435.0,0.00022655,2]
[321755856,1712496639842,-805.0,0.00022655,2]
[321755857,1712496639853,-606.0,0.00022655,2]
[321755858,1712496639861,-281.556,0.00022655,2]
[321755859,1712496639871,-1942.0,0.00022655,2]
[321755860,1712496639880,-1467.0,0.00022655,2]
[321755861,1712496639890,-1140.0,0.00022655,2]
[321755862,1712496639901,-3033.0,0.00022655,2]
[321755863,1712496639911,-397.0,0.00022655,2]
[321755864,1712496639921,-150.0,0.00022655,2]
[321755865,1712496639930,-1632.0,0.00022655,2]
[321755866,1712496639941,-2432.0,0.00022655,2]
[321755867,1712496639951,-413.117,0.00022655,2]
[321755869,1712496640158,-214.0,0.00022655,2]
[321755870,1712496640167,-1399.462,0.00022655,2]
[321755871,1712496640177,-973.992,0.00022655,2]
[321755872,1712496640186,-2451.262,0.00022655,2]
[321755873,1712496640195,-2814.794,0.00022655,2]
[321755874,1712496640204,-463.087,0.00022655,2]
[321755875,1712496640213,-600.0,0.00022865,2]
[321755876,1712496640224,-1928.52698668,0.00022901,2]
[321755877,1712496640233,-300.52971126,0.00022901,2]
[321755878,1712496640243,-199.27787119,0.00023,2]
[321755879,1712496640252,-589.13648276,0.00023,2]
[321755880,1712496640261,-1800.0,0.00023,3]
[321755881,1712496640270,-150.0,0.00023,2]
[321755882,1712496640279,-321.58361842,0.00023117,2]
[321755883,1712496640288,-100000.0,0.00023119,2]
[321755884,1712496640298,-166.4158568,0.0002315,2]
[321755885,1712496640308,-157.24945075,0.00023151,2]
[321755888,1712496640317,-160.98462779,0.00023291,2]
[321755890,1712496640327,-172.07450615,0.00023291,2]
[321755892,1712496640336,-337.0,0.000233,2]
[321755894,1712496640346,-153.40889555,0.0002332,2]
[321755898,1712496640356,-317.52450685,0.00023341,7]
[321755902,1712496640365,-5306.712215,0.000234,2]
[321755906,1712496640375,-33457.74065374,0.000234,2]
[321755908,1712496640384,-2010.69013525,0.000234,2]
[321755910,1712496640394,-1928.52698668,0.00023401,2]
[321755912,1712496640404,-300.52971126,0.00023401,2]
[321755914,1712496640413,-172.07450615,0.00023406,2]
[321755916,1712496640422,-150.66332821,0.00023426,2]
[321755917,1712496640432,-151.36062497,0.0002343,2]
[321755918,1712496640442,-150.61093648,0.00023458,2]
[321755919,1712496640451,-3660.44176535,0.000235,2]
[321755920,1712496640461,-150.0,0.000235,2]
[321755921,1712496640472,-153.40889555,0.00023643,2]
[321755922,1712496640482,-157.24945075,0.00023654,2]
[321755923,1712496640492,-229.46716507,0.00023701,2]
[321755924,1712496640505,-156.99822526,0.00023722,2]
[321755925,1712496640515,-151.11770668,0.00023766,2]
[321755926,1712496640524,-150.66332821,0.00023787,2]
[321755927,1712496640534,-172.07450615,0.00023833,2]
[321755928,1712496640544,-1653.08,0.000239,2]
[321755929,1712496640553,-1288.05,0.000239,2]
[321755930,1712496640562,-1928.52698668,0.000239,2]
[321755931,1712496640572,-300.52971126,0.000239,2]
[321755932,1712496640583,-151.36062497,0.00023967,2]
[321755933,1712496640593,-517.19839659,0.00024,2]
[321755934,1712496640602,-150.0,0.00024,2]
[321755935,1712496640612,-172.07450615,0.0002401,2]
[321755936,1712496640621,-160.98462779,0.00024037,2]
[321755937,1712496640631,-317.52450685,0.00024062,8]
[321755938,1712496640640,-150.66332821,0.00024071,2]
[321755939,1712496640650,-229.46716507,0.00024072,2]
[321755940,1712496640660,-151.36062497,0.00024125,2]
[321755941,1712496640669,-1089.78,0.00024174,2]
[321755942,1712496640678,-13344.48,0.00024174,2]
[321755943,1712496640688,-6773.18,0.00024174,2]
[321755944,1712496640697,-1391.19,0.00024174,2]
[321755945,1712496640707,-6166.45,0.00024174,2]
[321755946,1712496640716,-227.81,0.00024174,2]
[321755947,1712496640729,-400.0,0.00024182,2]
[321755948,1712496640739,-321.58361842,0.00024211,2]
[321755949,1712496640749,-496.02,0.00024214,2]
[321755950,1712496640758,-172.07450615,0.00024255,2]
[321755951,1712496640768,-321.58361842,0.0002428,2]
[321755952,1712496640778,-2361.49,0.00024329,15]
[321755953,1712496640787,-2207.71309066,0.00024329,2]
[321755954,1712496640797,-284.99078589,0.00024351,2]
[321755955,1712496640807,-151.11770668,0.00024354,2]
[321755956,1712496640816,-321.58361842,0.00024367,2]
[321755957,1712496640826,-1928.52698668,0.000244,2]
[321755958,1712496640835,-300.52971126,0.000244,2]
[321755959,1712496640844,-150.0,0.000245,2]
[321755960,1712496640854,-166.7821729,0.00024569,2]
[321755961,1712496640863,-284.99078589,0.00024588,2]
[321755962,1712496640872,-157.24945075,0.00024617,2]
[321755963,1712496640882,-18090.55576869,0.00024625,2]
[321755964,1712496640891,-151.33317952,0.00024655,2]
[321755965,1712496640901,-151.33317952,0.00024672,2]
[321755966,1712496640910,-153.29665992,0.00024673,2]
[321755967,1712496640920,-153.40889555,0.0002468,2]
[321755968,1712496640930,-21352.29,0.000247,2]
[321755969,1712496640939,-1000.0,0.000247,2]
[321755970,1712496640949,-172.07450615,0.00024702,2]
[321755971,1712496640958,-505.23422638,0.0002475,2]
[321755972,1712496640967,-6922.41095561,0.0002475,2]
[321755973,1712496640979,-165.52431146,0.0002475,2]
[321755974,1712496640988,-774.75739,0.0002475,2]
[321755975,1712496640997,-350.97181,0.0002475,2]
[321755976,1712496641007,-350.97182,0.0002475,2]
[321755977,1712496641016,-156.99822526,0.00024764,2]
[321755978,1712496641025,-229.46716507,0.00024767,2]
[321755979,1712496641034,-172.07450615,0.00024772,2]
[321755980,1712496641044,-155.01816655,0.00024778,2]
[321755981,1712496641053,-160.98462779,0.00024782,2]
[321755982,1712496641062,-317.52450685,0.00024782,9]
[321755983,1712496641071,-1309.82162962,0.00024782,2]
[321755984,1712496641080,-500.0,0.00024799,2]
[321755985,1712496641090,-4267.03494784,0.000248,2]
[321755986,1712496641099,-231.58246,0.000248,2]
[321755987,1712496641109,-800.0,0.000248,2]
[321755988,1712496641119,-500.0,0.000248,2]
[321755989,1712496641128,-500.0,0.00024831,2]
[321755990,1712496641138,-1000.0,0.00024831,2]
[321755991,1712496641147,-321.58361842,0.00024856,2]
[321755992,1712496641157,-20596.0,0.00024878,2]
[321755993,1712496641167,-11793.52314838,0.0002488,2]
[321755994,1712496641178,-7383619.25571596,0.0002488,2]
[321755995,1712496641188,-11793.52314832,0.00024882,2]
[321755996,1712496641200,-11793.52314832,0.00024884,2]
[321755997,1712496641210,-11793.52314832,0.00024885,2]
[321755998,1712496641220,-11793.52314832,0.00024887,2]
[321755999,1712496641231,-11793.52314832,0.00024889,2]
[321756000,1712496641241,-11793.52314832,0.00024891,2]
[321756001,1712496641251,-11793.52314832,0.00024893,2]
[321756002,1712496641260,-11793.52314832,0.00024895,2]
[321756003,1712496641270,-11793.52314832,0.00024896,2]
[321756004,1712496641280,-11793.52314832,0.00024898,2]
[321756005,1712496641289,-17298.5306,0.00024899,2]
[321756006,1712496641299,-100000.0,0.00024899,2]
[321756007,1712496641308,-2064.2515,0.00024899,2]
[321756008,1712496641317,-11793.52314832,0.000249,2]
[321756009,1712496641326,-10000.0,0.000249,2]
[321756010,1712496641336,-245000.0,0.000249,2]
[321756011,1712496641346,-1000.0,0.000249,2]
[321756012,1712496641355,-5306.712215,0.000249,2]
[321756013,1712496641364,-152.86116254,0.000249,2]
[321756014,1712496641373,-152.86116251,0.000249,2]
[321756015,1712496641382,-33457.74065374,0.000249,2]
[321756016,1712496641392,-152.86116251,0.000249,2]
[321756017,1712496641402,-152.86116251,0.000249,2]
[321756018,1712496641411,-152.86116251,0.000249,2]
[321756019,1712496641420,-152.86116251,0.000249,2]
[321756020,1712496641430,-1928.52698668,0.000249,2]
[321756021,1712496641440,-152.86116251,0.000249,2]
[321756022,1712496641449,-2010.69013525,0.000249,2]
[321756023,1712496641458,-152.86116251,0.000249,2]
[321756024,1712496641468,-152.86116251,0.000249,2]
[321756025,1712496641479,-152.86116251,0.000249,2]
[321756026,1712496641489,-152.86116251,0.000249,2]
[321756027,1712496641501,-300.52971126,0.000249,2]
[321756028,1712496641511,-152.86116251,0.000249,2]
[321756029,1712496641520,-152.86116251,0.000249,2]
[321756030,1712496641530,-800.0,0.00024904,2]
[321756031,1712496641541,-800.0,0.00024904,2]
[321756032,1712496641550,-321.58361842,0.00024918,2]
[321756033,1712496641560,-159.50728933,0.00024923,2]
[321756034,1712496641569,-150.61093648,0.00024924,2]
[321756035,1712496641579,-1332.63787459,0.00024928,2]
[321756036,1712496641588,-1210.58734192,0.00024928,2]
[321756037,1712496641598,-166.88650538,0.00024928,2]
[321756038,1712496641607,-160.93111356,0.00024928,2]
[321756039,1712496641617,-625.20246692,0.00024928,2]
[321756040,1712496641626,-500.0,0.00024931,2]
[321756041,1712496641636,-501.48722222,0.00024931,2]
[321756042,1712496641645,-500.0,0.00024931,2]
[321756043,1712496641655,-500.0,0.00024931,2]
[321756044,1712496641664,-500.0,0.00024931,2]
[321756045,1712496641673,-503.0454369,0.00024931,2]
[321756046,1712496641683,-500.0,0.00024931,2]
[321756047,1712496641692,-500.0,0.00024931,2]
[321756048,1712496641701,-500.0,0.00024931,2]
[321756049,1712496641712,-500.0,0.00024931,2]
[321756050,1712496641722,-500.0,0.00024931,2]
[321756051,1712496641732,-500.0,0.00024931,2]
[321756052,1712496641741,-349.05579081,0.00024931,2]
[321756053,1712496641750,-500.0,0.00024931,2]
[321756054,1712496641760,-500.0,0.00024931,2]
[321756055,1712496641769,-520.69034722,0.00024931,2]
[321756056,1712496641778,-500.0,0.00024931,2]
[321756057,1712496641788,-500.0,0.00024931,2]
[321756058,1712496641797,-500.0,0.00024931,2]
[321756059,1712496641806,-508.92581802,0.00024931,2]
[321756060,1712496641815,-500.0,0.00024931,2]
[321756061,1712496641824,-608.96847669,0.00024931,2]
[321756062,1712496641834,-376.51849178,0.00024931,2]
[321756063,1712496641844,-501.74787804,0.00024931,2]
[321756064,1712496641853,-500.0,0.00024931,2]
[321756065,1712496641863,-518.01869247,0.00024931,2]
[321756066,1712496641872,-515.19843979,0.00024931,2]
[321756067,1712496641882,-500.0,0.00024931,2]
[321756068,1712496641892,-502.03167797,0.00024931,2]
[321756069,1712496641901,-506.349014,0.00024931,2]
[321756070,1712496641911,-523.07546449,0.00024931,2]
[321756071,1712496641920,-500.0,0.00024931,2]
[321756072,1712496641931,-528.26739776,0.00024931,2]
[321756073,1712496641940,-303.93967996,0.00024931,2]
[321756074,1712496641949,-500.0,0.00024931,2]
[321756075,1712496641960,-567.48357939,0.00024931,2]
[321756076,1712496641970,-500.0,0.00024931,2]
[321756077,1712496641980,-500.0,0.00024931,2]
[321756078,1712496641990,-574.34628501,0.00024931,2]
[321756079,1712496641999,-500.0,0.00024931,2]
[321756080,1712496642009,-516.62482574,0.00024931,2]
[321756081,1712496642019,-626.0617536,0.00024931,2]
[321756082,1712496642028,-500.0,0.00024931,2]
[321756083,1712496642038,-500.0,0.00024931,2]
[321756084,1712496642047,-437.95194804,0.00024931,2]
[321756085,1712496642056,-512.45055069,0.00024931,2]
[321756086,1712496642066,-518.57665777,0.00024931,2]
[321756087,1712496642076,-509.82192745,0.00024931,2]
[321756088,1712496642085,-513.87108327,0.00024931,2]
[321756089,1712496642095,-500.0,0.00024931,2]
[321756090,1712496642105,-643.7121135,0.00024931,2]
[321756091,1712496642115,-500.0,0.00024931,2]
[321756092,1712496642127,-533.75499014,0.00024931,2]
[321756093,1712496642136,-297.21614921,0.00024931,2]
[321756094,1712496642146,-500.0,0.00024931,2]
[321756095,1712496642155,-579.04,0.00024931,2]
[321756096,1712496642165,-500.0,0.00024931,2]
[321756097,1712496642175,-500.0,0.00024931,2]
[321756098,1712496642185,-503.9608,0.00024931,2]
[321756099,1712496642195,-500.0,0.00024931,2]
[321756100,1712496642205,-500.0,0.00024931,2]
[321756101,1712496642214,-500.0,0.00024931,2]
[321756102,1712496642223,-517.89,0.00024931,2]
[321756103,1712496642233,-500.0,0.00024931,2]
[321756104,1712496642242,-620.50396506,0.00024931,2]
[321756105,1712496642251,-568.27,0.00024931,2]
[321756106,1712496642261,-500.0,0.00024931,2]
[321756107,1712496642270,-500.0,0.00024931,2]
[321756108,1712496642281,-500.0,0.00024931,2]
[321756109,1712496642290,-500.0,0.00024931,2]
[321756110,1712496642300,-515.2454962,0.00024931,2]
[321756111,1712496642310,-514.89914066,0.00024931,2]
[321756112,1712496642319,-500.0,0.00024931,2]
[321756113,1712496642328,-262.13594436,0.00024931,2]
[321756114,1712496642337,-500.0,0.00024931,2]
[321756115,1712496642347,-529.67222673,0.00024931,2]
[321756116,1712496642356,-315.26171279,0.00024931,2]
[321756117,1712496642365,-500.0,0.00024931,2]
[321756118,1712496642374,-544.1195656,0.00024931,2]
[321756119,1712496642383,-500.0,0.00024931,2]
[321756120,1712496642392,-503.72044458,0.00024931,2]
[321756121,1712496642402,-515.70120706,0.00024931,2]
[321756122,1712496642412,-500.0,0.00024931,2]